bitfinex/quotes_SOLUSD_20250719
["timestamp","ask_amount","ask_price","bid_price","bid_amount"]
[1752903093506,74.13257701,177.53,177.52,1e-08]
[1752903096308,74.79257701,177.53,177.52,1e-08]
[1752903096989,71.79285078,177.53,177.52,1e-08]
[1752903097307,74.79257701,177.53,177.52,1e-08]
[1752903098309,74.13257701,177.53,177.52,1e-08]
[1752903102430,71.13285078,177.53,177.52,1e-08]
[1752903102601,74.13257701,177.53,177.52,0.71000001]
[1752903102915,71.13285078,177.53,177.52,1e-08]
[1752903103301,74.13257701,177.53,177.52,1e-08]
[1752903105318,45.13285078,177.53,177.52,1e-08]
[1752903105520,45.13285078,177.53,177.52,0.71000001]
[1752903105940,5.63263518,177.54,177.52,0.71000001]
[1752903106240,39.48,177.53,177.52,1e-08]
[1752903106624,39.48,177.53,177.52,0.71000001]
[1752903107444,39.48,177.54,177.52,0.71000001]
[1752903110324,39.48,177.54,177.53,0.71]
[1752903110918,5.63197255,177.56,177.53,0.71]
[1752903111123,39.48,177.55,177.54,0.71]
[1752903111426,45.11221627,177.55,177.54,0.71]
[1752903112617,45.11221627,177.55,177.53,0.71]
[1752903119528,45.11221627,177.55,177.52,1.91869936]
[1752903119754,45.11221627,177.55,177.53,0.71]
[1752903120154,45.11221627,177.55,177.52,1.91869936]
[1752903120330,45.11221627,177.55,177.53,0.71]
[1752903120762,45.11221627,177.55,177.54,0.71]
[1752903121371,35.17980686,177.57,177.54,0.71]
[1752903121372,8.51980686,177.57,177.54,2.62869935]
[1752903121675,8.51980686,177.57,177.56,1.91869935]
[1752903121886,8.51980686,177.57,177.56,2.62869935]
[1752903122257,14.15138877,177.57,177.56,2.62869935]
[1752903122452,8.51980686,177.57,177.56,2.62869935]
[1752903122962,8.51980686,177.57,177.56,3.70643008]
[1752903123658,14.15138877,177.57,177.56,3.70643008]
[1752903124958,14.15138877,177.57,177.53,1.5254]
[1752903125170,0.66,177.56,177.53,4.52183008]
[1752903125365,39.46,177.55,177.53,1.5254]
[1752903125566,14.15138877,177.57,177.54,3.70643008]
[1752903125764,0.66,177.56,177.54,2.99643008]
[1752903126171,14.15138877,177.57,177.55,2.99643008]
[1752903126372,14.15138877,177.57,177.56,3.68643008]
[1752903129579,14.15138877,177.57,177.56,2.99643008]
[1752903130575,0.06,177.57,177.56,20.47111405]
[1752903134090,0.06,177.57,177.56,26.10301312]
[1752903134719,0.06,177.57,177.56,20.47111405]
[1752903138709,0.06,177.57,177.56,26.10301312]
[1752903139231,0.06,177.57,177.56,65.54301312]
[1752903139543,0.06,177.57,177.56,156.1394432]
[1752903142543,0.06,177.57,177.56,153.14301312]
[1752903143049,0.06,177.57,177.56,152.06317338]
[1752903143273,0.06,177.57,177.56,159.72953474]
[1752903143416,0.06,177.61,177.6,24.81497431]
[1752903143743,0.06,177.61,177.6,152.41803737]
[1752903144036,0.06,177.61,177.6,152.54497431]
[1752903145136,0.06,177.61,177.6,158.17560494]
[1752903146136,0.06,177.62,177.61,16.78468397]
[1752903146339,6.34781289,177.69,177.61,19.95430567]
[1752903146547,6.34781289,177.69,177.64,18.70127431]
[1752903146845,5.62781289,177.69,177.64,59.69447431]
[1752903147053,5.68714534,177.71,177.64,60.77023645]
[1752903147255,0.72,177.7,177.64,70.08195168]
[1752903147431,6.40714534,177.71,177.64,70.08195168]
[1752903147962,5.68714534,177.71,177.64,70.08195168]
[1752903148164,0.72,177.7,177.64,70.08195168]
[1752903148450,5.62777871,177.69,177.64,61.46023645]
[1752903149127,5.62777871,177.69,177.64,70.08195168]
[1752903149648,5.62777871,177.69,177.64,67.0895992]
[1752903150033,6.34757007,177.7,177.64,67.0895992]
[1752903150447,6.34757007,177.7,177.64,70.08195168]
[1752903150659,0.72,177.7,177.64,70.08195168]
[1752903150956,6.34752622,177.7,177.64,70.08195168]
[1752903151725,6.34752622,177.7,177.64,67.0895992]
[1752903152450,0.72,177.69,177.64,67.0895992]
[1752903153065,5.68714534,177.71,177.64,67.0895992]
[1752903153066,0.72,177.68,177.64,67.0895992]
[1752903153747,5.68714534,177.71,177.64,67.0895992]
[1752903154060,0.72,177.69,177.64,70.08195168]
[1752903154755,5.62760387,177.7,177.64,70.08195168]
[1752903155137,6.40721616,177.71,177.64,157.68195168]
[1752903155342,0.78,177.71,177.64,157.68195168]
[1752903158290,6.4071942,177.71,177.64,157.68195168]
[1752903159858,0.78,177.71,177.64,157.68195168]
[1752903160233,6.40724932,177.71,177.64,157.68195168]
[1752903160943,0.78,177.71,177.64,157.68195168]
[1752903163055,0.78,177.71,177.65,16.78468397]
[1752903163254,0.78,177.71,177.7,2.99235248]
[1752903167835,0.78,177.71,177.66,90.59235248]
[1752903168058,0.78,177.71,177.69,2.99235248]
[1752903168059,6.40726171,177.71,177.69,2.99235248]
[1752903168263,0.69,177.7,177.69,2.99235248]
[1752903169168,0.69,177.7,177.68,2.99235248]
[1752903169368,5.62777871,177.69,177.66,87.6]
[1752903169564,5.62777871,177.69,177.67,2.99235248]
[1752903169774,0.69,177.68,177.67,2.99235248]
[1752903172860,0.69,177.7,177.67,2.99235248]
[1752903173060,0.69,177.7,177.69,2.99235248]
[1752903173865,0.75,177.71,177.69,2.99235248]
[1752903174171,0.75,177.71,177.7,2.99235248]
[1752903175545,0.06,177.71,177.7,2.99235248]
[1752903177280,0.75,177.71,177.7,2.99235248]
[1752903177978,0.06,177.71,177.7,2.99235248]
[1752903178562,0.75,177.71,177.7,2.99235248]
[1752903178974,0.06,177.71,177.7,2.99235248]
[1752903179983,0.06,177.71,177.7,20.43703645]
[1752903180181,0.06,177.71,177.7,26.06449846]
[1752903180809,0.06,177.71,177.7,19.77703645]
[1752903181285,0.75,177.71,177.7,19.77703645]
[1752903181888,0.06,177.71,177.7,25.40449846]
[1752903182691,0.06,177.71,177.7,19.77703645]
[1752903182994,0.06,177.71,177.7,25.40449846]
[1752903183966,0.06,177.71,177.7,26.06449846]
[1752903184963,0.06,177.71,177.7,113.66449846]
[1752903186465,0.06,177.71,177.7,114.22724466]
[1752903188788,0.06,177.71,177.7,110.57489218]
[1752903188999,0.06,177.71,177.7,107.37703645]
[1752903189586,0.72,177.71,177.7,107.37703645]
[1752903189766,0.06,177.71,177.7,113.00449846]
[1752903189967,0.06,177.71,177.7,114.26724466]
[1752903197795,0.06,177.71,177.7,143.25959714]
[1752903197984,0.06,177.71,177.7,142.69685094]
[1752903198985,0.06,177.75,177.72,26.0]
[1752903199183,0.06,177.75,177.74,19.77703645]
[1752903199704,0.72,177.75,177.74,19.77703645]
[1752903200980,0.72,177.75,177.74,18.69849343]
[1752903201175,0.06,177.75,177.74,19.26111298]
[1752903201376,0.06,177.75,177.74,25.58730854]
[1752903201816,0.06,177.75,177.74,18.69849343]
[1752903202613,0.06,177.75,177.74,24.32468899]
[1752903202815,0.06,177.75,177.74,25.02468899]
[1752903203013,0.72,177.75,177.74,16.78468397]
[1752903203174,0.72,177.75,177.74,19.77420695]
[1752903203578,0.72,177.75,177.74,16.78468397]
[1752903203889,0.72,177.75,177.74,19.77420695]
[1752903205884,0.72,177.75,177.74,16.78468397]
[1752903206185,0.72,177.75,177.74,19.77420695]
[1752903207085,6.34587904,177.75,177.74,19.77420695]
[1752903207287,0.72,177.75,177.74,19.77420695]
[1752903210000,0.06,177.75,177.74,19.77420695]
[1752903210387,0.06,177.75,177.74,21.0368265]
[1752903210594,0.06,177.75,177.74,26.66302206]
[1752903210783,0.06,177.75,177.74,21.0368265]
[1752903211183,0.06,177.75,177.74,20.3368265]
[1752903211399,0.72,177.75,177.74,16.78468397]
[1752903211591,0.72,177.75,177.74,19.77420695]
[1752903212685,0.06,177.75,177.74,19.77420695]
[1752903213309,0.72,177.75,177.69,26.0]
[1752903213500,6.34601679,177.75,177.69,16.78468397]
[1752903213800,0.66,177.74,177.72,2.98952298]
[1752903215222,5.62651212,177.73,177.72,2.98952298]
[1752903215520,6.28651212,177.73,177.72,2.98952298]
[1752903215894,0.66,177.73,177.72,2.98952298]
[1752903218230,5.62630008,177.74,177.72,2.98952298]
[1752903218396,6.29630008,177.74,177.72,3.01952298]
[1752903218597,6.29630008,177.74,177.73,2.98952298]
[1752903218989,0.06,177.75,177.73,19.77420695]
[1752903219196,0.06,177.75,177.74,2.98952298]
[1752903220495,0.73,177.75,177.74,2.98952298]
[1752903224908,0.73,177.75,177.73,16.78468397]
[1752903225219,0.73,177.75,177.74,2.98952298]
[1752903227003,6.35587904,177.75,177.74,1.91368597]
[1752903228718,6.35587904,177.75,177.72,0.03]
[1752903229028,0.67,177.74,177.72,0.03]
[1752903229227,0.67,177.74,177.73,1.91368597]
[1752903229921,6.29619556,177.74,177.73,1.91368597]
[1752903231730,5.62619556,177.74,177.73,9.56842985]
[1752903232621,6.29619556,177.74,177.73,1.91368597]
[1752903234614,6.29619556,177.74,177.72,0.03]
[1752903234815,5.68587904,177.75,177.73,1.91368597]
[1752903235020,5.68587904,177.75,177.74,1.91368597]
[1752903235520,6.35587904,177.75,177.74,1.91368597]
[1752903236542,6.35587904,177.75,177.72,0.03]
[1752903236836,5.68587904,177.75,177.74,1.91368597]
[1752903237429,6.35587904,177.75,177.74,1.91368597]
[1752903238021,45.73587904,177.75,177.74,1.91368597]
[1752903238921,0.06,177.75,177.74,19.39836994]
[1752903240938,0.06,177.75,177.74,20.47361965]
[1752903243733,0.1,177.76,177.74,114.26243476]
[1752903243934,0.1,177.76,177.75,3.68893568]
[1752903244811,0.77,177.76,177.75,19.77361965]
[1752903245007,0.1,177.76,177.75,19.77361965]
[1752903245432,0.1,177.76,177.75,16.78468397]
[1752903245751,0.1,177.76,177.75,19.77361965]
[1752903245752,6.39556255,177.76,177.75,19.77361965]
[1752903246238,6.39556255,177.76,177.75,16.78468397]
[1752903246440,0.1,177.76,177.75,19.77361965]
[1752903247218,6.42556255,177.76,177.75,19.77361965]
[1752903247428,0.8,177.76,177.75,19.77361965]
[1752903248942,0.1,177.76,177.75,19.77361965]
[1752903252144,5.72556255,177.76,177.75,19.77361965]
[1752903252344,0.1,177.76,177.75,19.77361965]
[1752903252759,5.72556255,177.76,177.75,19.77361965]
[1752903252928,0.1,177.76,177.75,19.77361965]
[1752903254719,0.1,177.76,177.75,20.44361965]
[1752903257250,5.72556255,177.76,177.75,19.77361965]
[1752903257461,0.1,177.76,177.75,19.77361965]
[1752903257955,0.1,177.76,177.75,20.44361965]
[1752903261059,0.1,177.76,177.75,19.36721822]
[1752903261647,0.1,177.76,177.73,103.89551558]
[1752903261648,0.8,177.76,177.74,16.78468397]
[1752903261850,5.72556255,177.76,177.75,1.91253425]
[1752903267057,6.42556255,177.76,177.73,0.03]
[1752903267242,0.7,177.75,177.73,7.680137]
[1752903267444,5.72556255,177.76,177.74,1.91253425]
[1752903267658,5.72556255,177.76,177.75,1.91253425]
[1752903268053,45.78556255,177.76,177.75,1.91253425]
[1752903269295,5.72556255,177.76,177.75,1.91253425]
[1752903269467,0.1,177.76,177.75,1.91253425]
[1752903270972,0.8,177.76,177.75,1.91253425]
[1752903271962,6.42556255,177.76,177.75,1.91253425]
[1752903272553,0.8,177.76,177.75,1.91253425]
[1752903273062,0.8,177.76,177.74,16.78468397]
[1752903273243,0.8,177.76,177.75,1.91253425]
[1752903274063,6.42556255,177.76,177.75,1.91253425]
[1752903279163,0.8,177.76,177.75,1.91253425]
[1752903281173,0.1,177.76,177.75,2.59253425]
[1752903281374,0.1,177.76,177.75,1.91253425]
[1752903281577,0.82,177.76,177.75,1.91253425]
[1752903282968,0.82,177.76,177.73,95.960137]
[1752903282969,0.1,177.76,177.73,95.960137]
[1752903283176,0.82,177.76,177.75,1.91253425]
[1752903284056,0.1,177.76,177.75,1.91253425]
[1752903284573,0.1,177.76,177.75,1.94253425]
[1752903287976,45.02473637,177.79,177.75,19.40721822]
[1752903288278,45.74473637,177.79,177.78,1.91253425]
[1752903288680,0.06,177.79,177.78,9.56267125]
[1752903290605,0.06,177.79,177.78,10.24267125]
[1752903290905,0.06,177.79,177.78,9.56267125]
[1752903292700,0.06,177.79,177.78,27.02735522]
[1752903294295,0.06,177.79,177.75,6.1565]
[1752903294296,0.72,177.79,177.75,0.03]
[1752903294770,5.62492968,177.78,177.77,1.91253425]
[1752903294972,6.34492968,177.78,177.75,0.03]
[1752903295171,40.06,177.77,177.75,0.03]
[1752903295371,40.06,177.77,177.76,1.91253425]
[1752903296094,45.6852461,177.77,177.76,1.91253425]
[1752903296286,45.6852461,177.77,177.75,0.03]
[1752903296488,44.9652461,177.77,177.76,1.91253425]
[1752903297006,45.6852461,177.77,177.76,2.98949745]
[1752903300382,39.34,177.77,177.76,2.98949745]
[1752903301513,40.06,177.77,177.76,2.98949745]
[1752903302284,39.34,177.77,177.76,2.98949745]
[1752903302688,44.9652461,177.77,177.76,2.98949745]
[1752903302988,45.6852461,177.77,177.75,0.03]
[1752903303188,44.9652461,177.77,177.76,2.98949745]
[1752903304092,6.34513055,177.78,177.76,2.98949745]
[1752903304291,39.34,177.77,177.75,0.03]
[1752903304508,39.34,177.77,177.76,2.98949745]
[1752903305124,6.34513055,177.78,177.76,2.98949745]
[1752903305286,39.34,177.77,177.75,0.03]
[1752903305487,39.34,177.77,177.76,2.98949745]
[1752903306408,0.06,177.8,177.76,3.01949745]
[1752903306584,6.38451864,177.8,177.79,2.98949745]
[1752903306785,45.72451864,177.8,177.79,2.98949745]
[1752903306989,0.06,177.8,177.79,5.9789949]
[1752903307209,39.4,177.8,177.79,5.9789949]
[1752903307383,0.06,177.8,177.79,6.6589949]
[1752903307984,0.06,177.8,177.79,5.9789949]
[1752903308611,0.06,177.8,177.79,22.76367887]
[1752903308817,0.06,177.8,177.79,23.44367887]
[1752903309892,0.06,177.8,177.79,22.76367887]
[1752903310407,0.06,177.8,177.76,0.03]
[1752903310616,0.06,177.8,177.79,2.98949745]
[1752903311416,0.06,177.8,177.79,5.9789949]
[1752903311904,0.06,177.8,177.79,2.98949745]
[1752903314523,0.06,177.8,177.79,5.9789949]
[1752903314902,0.06,177.8,177.79,2.98949745]
[1752903315715,0.06,177.8,177.79,5.9789949]
[1752903316121,0.06,177.8,177.79,6.6589949]
[1752903317918,0.06,177.8,177.79,111.04367887]
[1752903318107,11.35196798,177.82,177.8,16.78468397]
[1752903318300,11.35196798,177.82,177.81,20.45418142]
[1752903320518,11.35196798,177.82,177.81,59.77418142]
[1752903321095,0.06,177.87,177.82,16.78468397]
[1752903321420,0.7,177.86,177.84,16.78468397]
[1752903321617,45.00208354,177.87,177.85,2.98949745]
[1752903321801,45.00208354,177.87,177.86,2.98949745]
[1752903321994,45.00208354,177.87,177.82,16.78468397]
[1752903322407,45.00208354,177.87,177.85,2.98949745]
[1752903322815,0.7,177.86,177.82,16.78468397]
[1752903322992,59.0572924,177.87,177.85,2.98949745]
[1752903323409,59.0572924,177.87,177.86,2.98949745]
[1752903323605,59.0572924,177.87,177.82,16.78468397]
[1752903324210,5.62271577,177.85,177.82,16.78468397]
[1752903324423,0.7,177.84,177.82,2.98949745]
[1752903324720,40.02,177.84,177.82,2.98949745]
[1752903325093,39.32,177.84,177.83,2.98949745]
[1752903325420,39.32,177.84,177.81,0.68]
[1752903325615,39.32,177.84,177.83,2.98949745]
[1752903326321,44.94303193,177.84,177.83,2.98949745]
[1752903327328,45.64303193,177.84,177.83,2.98949745]
[1752903328804,45.64303193,177.84,177.78,114.28]
[1752903329125,0.7,177.83,177.81,2.98949745]
[1752903329326,0.7,177.83,177.82,2.98949745]
[1752903329711,0.7,177.83,177.81,2.98949745]
[1752903330224,39.32,177.82,177.78,87.6]
[1752903330423,5.62398065,177.81,177.79,2.98949745]
[1752903330630,5.62398065,177.81,177.8,2.98949745]
[1752903330838,0.7,177.8,177.76,0.03]
[1752903331018,6.32398065,177.81,177.79,2.98949745]
[1752903331219,39.34,177.8,177.77,0.68]
[1752903331431,39.34,177.8,177.79,2.98949745]
[1752903332318,6.32398065,177.81,177.79,2.98949745]
[1752903332644,45.68398065,177.81,177.8,2.98949745]
[1752903333625,59.74393228,177.81,177.76,0.03]
[1752903333931,0.7,177.8,177.76,0.03]
[1752903334129,39.5,177.79,177.77,2.98949745]
[1752903334335,6.32492968,177.78,177.77,2.98949745]
[1752903334704,45.80492968,177.78,177.77,2.98949745]
[1752903335233,6.32492968,177.78,177.77,2.98949745]
[1752903336415,0.7,177.78,177.77,2.98949745]
[1752903336809,26.0,177.76,177.75,0.03]
[1752903337009,68.46949745,177.76,177.69,0.03]
[1752903337222,2.98949745,177.73,177.69,0.03]
[1752903337430,39.52,177.72,177.69,0.03]
[1752903337738,40.19,177.72,177.69,3.01949745]
[1752903338922,45.81682871,177.72,177.69,0.03]
[1752903339636,71.81682871,177.72,177.69,0.03]
[1752903344924,71.81682871,177.72,177.69,3.01949745]
[1752903347946,71.81682871,177.72,177.71,3.01949745]
[1752903347947,32.29682871,177.72,177.71,3.01949745]
[1752903348132,71.77682871,177.72,177.71,3.01949745]
[1752903348446,71.10682871,177.72,177.71,3.01949745]
[1752903348648,71.77682871,177.72,177.71,3.01949745]
[1752903349635,45.10682871,177.72,177.71,3.01949745]
[1752903350223,45.83682871,177.72,177.71,3.01949745]
[1752903350423,0.06,177.72,177.71,3.73949745]
[1752903350643,39.54,177.72,177.71,3.01949745]
[1752903351345,40.21,177.72,177.71,3.01949745]
[1752903351935,45.83682871,177.72,177.71,3.01949745]
[1752903352270,0.06,177.72,177.71,3.01949745]
[1752903352435,0.06,177.72,177.71,6.7289949]
[1752903353361,0.06,177.72,177.71,3.01949745]
[1752903353648,40.23,177.72,177.71,3.01949745]
[1752903354358,39.56,177.72,177.71,3.01949745]
[1752903356539,39.56,177.72,177.71,3.73949745]
[1752903356938,0.06,177.72,177.71,23.51367887]
[1752903357141,0.06,177.76,177.72,16.78468397]
[1752903357339,0.06,177.76,177.75,2.98949745]
[1752903357949,0.06,177.76,177.75,3.70949745]
[1752903359252,0.06,177.76,177.75,2.98949745]
[1752903359450,0.73,177.76,177.75,2.98949745]
[1752903360245,5.68556255,177.76,177.75,2.98949745]
[1752903360649,0.06,177.76,177.75,2.98949745]
[1752903360983,39.56,177.76,177.75,2.98949745]
[1752903362151,45.18556255,177.76,177.75,2.98949745]
[1752903363258,45.85556255,177.76,177.75,2.98949745]
[1752903363757,59.91946894,177.76,177.73,2.98949745]
[1752903363931,59.24946894,177.76,177.73,2.98949745]
[1752903364132,0.67,177.75,177.73,2.98949745]
[1752903364338,45.12619556,177.74,177.73,2.98949745]
[1752903364761,45.79619556,177.74,177.73,2.98949745]
[1752903365773,45.12619556,177.74,177.73,2.98949745]
[1752903366664,5.68569544,177.76,177.73,6.6689949]
[1752903366965,40.17,177.75,177.71,0.03]
[1752903367162,40.17,177.75,177.74,2.98949745]
[1752903367358,39.48,177.75,177.74,2.98949745]
[1752903369162,45.79587904,177.75,177.74,2.98949745]
[1752903370070,45.79587904,177.75,177.71,3.01949745]
[1752903370371,0.69,177.74,177.71,3.01949745]
[1752903370676,40.17,177.73,177.71,3.01949745]
[1752903371556,45.79679617,177.73,177.72,2.98949745]
[1752903373971,45.10679617,177.73,177.72,2.98949745]
[1752903376081,45.10679617,177.73,177.72,3.67949745]
[1752903376274,45.10679617,177.73,177.72,2.98949745]
[1752903385086,45.10679617,177.73,177.71,0.03]
[1752903385283,45.10679617,177.73,177.72,2.98949745]
[1752903388478,39.48,177.73,177.72,2.98949745]
[1752903389683,45.10651212,177.73,177.72,2.98949745]
[1752903390191,39.48,177.73,177.72,3.67949745]
[1752903390600,45.10651212,177.73,177.72,3.67949745]
[1752903391096,45.10651212,177.73,177.72,2.98949745]
[1752903391479,0.3027,177.71,177.64,0.03]
[1752903391676,42.78468397,177.62,177.55,0.2]
[1752903391900,28.98949745,177.59,177.55,0.2]
[1752903392203,69.22949745,177.59,177.58,1e-08]
[1752903392402,69.91949745,177.59,177.58,1e-08]
[1752903392694,72.9089949,177.59,177.55,0.2]
[1752903392870,26.0,177.56,177.55,1e-08]
[1752903393071,30.2013904,177.56,177.55,1e-08]
[1752903393287,70.4413904,177.56,177.55,1e-08]
[1752903393476,76.07328947,177.56,177.55,1e-08]
[1752903393680,79.75278692,177.56,177.55,1e-08]
[1752903393877,75.55139652,177.56,177.55,1e-08]
[1752903394395,79.97264274,177.56,177.55,1e-08]
[1752903394895,76.98314529,177.56,177.55,1e-08]
[1752903395197,79.97264274,177.56,177.55,1e-08]
[1752903396197,2.98949745,177.55,177.53,1e-08]
[1752903396407,43.57949745,177.54,177.53,1e-08]
[1752903396894,26.0,177.52,177.51,1e-08]
[1752903397082,43.20949745,177.52,177.51,1e-08]
[1752903397285,49.93266554,177.52,177.51,1e-08]
[1752903397894,52.92216299,177.52,177.51,1e-08]
[1752903401881,57.07107167,177.52,177.51,1e-08]
[1752903402195,51.09207677,177.52,177.51,1e-08]
[1752903402410,57.07107167,177.52,177.51,1e-08]
[1752903403586,73.85575564,177.52,177.49,1e-08]
[1752903403793,26.0,177.49,177.48,1e-08]
[1752903403994,73.68304311,177.49,177.48,1e-08]
[1752903404196,74.40304311,177.49,177.48,1e-08]
[1752903404504,70.25949745,177.49,177.48,1e-08]
[1752903404921,67.27,177.49,177.48,1e-08]
[1752903405096,70.25949745,177.49,177.48,1e-08]
[1752903405300,26.37,177.49,177.48,1e-08]
[1752903405514,69.16949745,177.49,177.48,1e-08]
[1752903405698,48.80361768,177.49,177.48,1e-08]
[1752903406095,49.17361768,177.49,177.48,1e-08]
[1752903408607,46.18412023,177.49,177.48,1e-08]
[1752903408822,49.17361768,177.49,177.48,1e-08]
[1752903409499,46.18412023,177.49,177.48,1e-08]
[1752903409699,49.17361768,177.49,177.48,1e-08]
[1752903410515,0.37,177.49,177.48,3.68949746]
[1752903410721,0.37,177.51,177.48,3.68949746]
[1752903410903,0.37,177.51,177.5,2.98949745]
[1752903411111,40.51,177.52,177.5,2.98949745]
[1752903411418,0.37,177.52,177.51,3.68949745]
[1752903412706,6.00262967,177.54,177.51,3.68949745]
[1752903413024,46.14262967,177.54,177.53,2.98949745]
[1752903413197,40.51,177.54,177.53,3.68949745]
[1752903413402,6.00253351,177.54,177.53,3.68949745]
[1752903413601,0.37,177.54,177.53,3.68949745]
[1752903414007,0.37,177.55,177.53,3.68949745]
[1752903414304,0.37,177.55,177.54,3.68949745]
[1752903415530,0.37,177.56,177.54,3.68949745]
[1752903415725,0.37,177.56,177.55,3.68949745]
[1752903416226,6.00189907,177.56,177.55,3.68949745]
[1752903417118,0.37,177.56,177.55,3.68949745]
[1752903417426,0.37,177.56,177.55,2.98949745]
[1752903417719,0.37,177.56,177.55,3.68949745]
[1752903417925,40.51,177.57,177.55,3.68949745]
[1752903418150,10.7508959,177.6,177.57,7.8343]
[1752903418301,5.63081792,177.6,177.57,1.5017]
[1752903418808,5.63081792,177.6,177.57,5.19119745]
[1752903419204,5.63081792,177.6,177.57,2.98949745]
[1752903419408,40.52,177.59,177.55,3.68949745]
[1752903419630,41.24,177.59,177.55,3.68949745]
[1752903420008,40.52,177.59,177.56,2.98949745]
[1752903420203,40.52,177.59,177.57,3.68949745]
[1752903420409,40.52,177.59,177.58,0.7]
[1752903420927,40.52,177.59,177.58,3.68949745]
[1752903425629,46.15094768,177.59,177.58,3.68949745]
[1752903425832,5.69000047,177.62,177.58,6.6789949]
[1752903426014,5.69000047,177.62,177.61,2.98949745]
[1752903426335,0.06,177.62,177.61,2.98949745]
[1752903426627,0.06,177.62,177.61,3.64949745]
[1752903427313,5.68999662,177.62,177.61,3.64949745]
[1752903427512,5.68999662,177.62,177.6,2.98949745]
[1752903427716,40.5,177.61,177.59,2.98949745]
[1752903428512,40.5,177.61,177.59,3.64949745]
[1752903428824,40.5,177.61,177.59,2.98949745]
[1752903429023,44.17949745,177.61,177.57,3.64949745]
[1752903429434,5.63063063,177.6,177.57,3.64949745]
[1752903429617,40.48,177.59,177.58,3.64949745]
[1752903430316,40.48,177.59,177.58,0.66]
[1752903430510,40.52,177.62,177.58,6.6389949]
[1752903430713,40.52,177.62,177.57,5.63152202]
[1752903430714,40.52,177.62,177.61,2.98949745]
[1752903431122,40.52,177.62,177.61,0.66]
[1752903431335,46.14999662,177.62,177.61,3.64949745]
[1752903431730,46.14999662,177.62,177.59,2.98949745]
[1752903431939,46.14999662,177.62,177.59,3.64949745]
[1752903432238,46.14999662,177.62,177.6,3.64949745]
[1752903434218,40.52,177.62,177.61,3.64949745]
[1752903435626,40.52,177.62,177.61,0.66]
[1752903435828,0.06,177.62,177.61,3.64949745]
[1752903436621,0.06,177.62,177.61,0.66]
[1752903437544,5.69007223,177.62,177.59,3.64949745]
[1752903437840,40.38,177.61,177.58,2.98949745]
[1752903438225,40.38,177.61,177.58,3.64949745]
[1752903438536,40.38,177.61,177.59,3.64949745]
[1752903438842,46.01040147,177.61,177.59,3.64949745]
[1752903439143,46.01040147,177.61,177.59,2.98949745]
[1752903440242,40.38,177.61,177.6,3.64949745]
[1752903440639,46.01038489,177.61,177.58,0.66]
[1752903440844,46.01038489,177.61,177.57,0.03]
[1752903440845,46.01038489,177.61,177.59,3.64949745]
[1752903442036,46.01038489,177.61,177.59,0.66]
[1752903442235,46.01038489,177.61,177.59,3.64949745]
[1752903442539,46.70038489,177.61,177.58,2.98949745]
[1752903443440,46.70038489,177.61,177.59,2.98949745]
[1752903443634,46.01038489,177.61,177.59,2.98949745]
[1752903443832,46.01038489,177.61,177.59,3.64949745]
[1752903448027,2.98949745,177.6,177.57,0.03]
[1752903448228,2.98949745,177.58,177.57,0.03]
[1752903448429,43.91949745,177.59,177.57,0.03]
[1752903449124,40.93,177.59,177.57,0.03]
[1752903449327,43.91949745,177.59,177.57,0.03]
[1752903449529,40.93,177.59,177.57,0.03]
[1752903449729,43.91949745,177.59,177.57,0.03]
[1752903449929,5.63126478,177.58,177.57,0.03]
[1752903452048,8.62076223,177.58,177.57,0.03]
[1752903452249,5.63126478,177.58,177.57,0.03]
[1752903453050,6.32126478,177.58,177.57,0.03]
[1752903454555,5.63126478,177.58,177.57,0.03]
[1752903455335,8.62076223,177.58,177.57,0.03]
[1752903455543,5.63126478,177.58,177.57,0.03]
[1752903457240,6.35126478,177.58,177.57,0.03]
[1752903459658,5.69126478,177.58,177.57,0.03]
[1752903460047,8.68076223,177.58,177.57,0.03]
[1752903460640,5.69126478,177.58,177.57,0.03]
[1752903461637,8.68076223,177.58,177.57,0.03]
[1752903462557,9.40076223,177.58,177.57,0.03]